fUST/lending_fUST_20250228
["ID","MTS","AMOUNT","RATE_DAILY","PERIOD"]
[354850144,1740736253776,-500.0,0.0009863,120]
[354850145,1740736253785,-500.0,0.0009863,120]
[354850146,1740736253795,-500.0,0.0009863,120]
[354850147,1740736253805,-510.29997173,0.0009863,120]
[354850148,1740736253814,-500.0,0.0009863,120]
[354850149,1740736253824,-18361.09,0.0009863,7]
[354850150,1740736253833,-500.0,0.0009863,120]
[354850151,1740736253843,-18361.09,0.0009863,7]
[354850152,1740736253852,-500.0,0.0009863,120]
[354850153,1740736253861,-18361.09,0.0009863,7]
[354850154,1740736253871,-500.0,0.0009863,120]
[354850155,1740736253880,-18361.09,0.0009863,7]
[354850156,1740736253889,-519.579207,0.0009863,120]
[354850157,1740736253899,-18361.09,0.0009863,7]
[354850158,1740736253908,-18361.09,0.0009863,7]
[354850159,1740736253917,-18361.09,0.0009863,7]
[354850160,1740736253927,-18361.09,0.0009863,7]
[354850161,1740736253936,-18361.09,0.0009863,7]
[354850162,1740736253946,-500.0,0.0009863,120]
[354850163,1740736253956,-18361.09,0.0009863,7]
[354850164,1740736253965,-500.0,0.0009863,120]
[354850165,1740736253975,-500.0,0.0009863,120]
[354850166,1740736253984,-500.0,0.0009863,120]
[354850167,1740736253994,-18361.09,0.0009863,7]
[354850168,1740736254003,-500.0,0.0009863,120]
[354850169,1740736254012,-500.0,0.0009863,120]
[354850170,1740736254022,-500.0,0.0009863,120]
[354850171,1740736254032,-500.0,0.0009863,120]
[354850172,1740736254041,-18361.09,0.0009863,7]
[354850173,1740736254050,-500.0,0.0009863,120]
[354850174,1740736254059,-500.0,0.0009863,120]
[354850175,1740736254069,-500.0,0.0009863,120]
[354850176,1740736254078,-18361.09,0.0009863,7]
[354850177,1740736254087,-500.0,0.0009863,120]
[354850178,1740736254096,-500.0,0.0009863,120]
[354850179,1740736254106,-500.0,0.0009863,120]
[354850180,1740736254115,-500.0,0.0009863,120]
[354850181,1740736254125,-18361.09,0.0009863,7]
[354850182,1740736254135,-500.0,0.0009863,120]
[354850183,1740736254147,-500.0,0.0009863,120]
[354850184,1740736254157,-500.0,0.0009863,120]
[354850185,1740736254166,-500.0,0.0009863,120]
[354850186,1740736254176,-500.0,0.0009863,120]
[354850187,1740736254186,-474.18683718,0.0009863,120]
[354850188,1740736254196,-18361.09,0.0009863,7]
[354850189,1740736254206,-500.0,0.0009863,120]
[354850190,1740736254216,-453.81,0.0009863,120]
[354850191,1740736254228,-500.0,0.0009863,120]
[354850192,1740736254238,-500.0,0.0009863,120]
[354850193,1740736254248,-18361.09,0.0009863,7]
[354850194,1740736254257,-500.0,0.0009863,120]
[354850195,1740736254267,-3110.50691386,0.0009863,7]
[354850196,1740736254628,-55.92254404,0.0009863,7]
[354850197,1740736309287,-150.0,0.00074065,28]
[354850198,1740736312979,-150.0,0.00074065,28]
[354850199,1740736313258,500.0,0.00052602,30]
[354850200,1740736313561,500.0,0.0005315,35]
[354850201,1740736313891,500.0,0.00053698,40]
[354850202,1740736314130,500.0,0.00054246,45]
[354850203,1740736314369,500.0,0.00054794,50]
[354850204,1740736314603,500.0,0.00055342,55]
[354850205,1740736314837,500.0,0.0005589,60]
[354850206,1740736315244,187.1745684,0.00039872,2]
[354850207,1740736315403,500.0,0.00056438,65]
[354850208,1740736315779,500.0,0.00056986,70]
[354850209,1740736316092,500.0,0.00057534,75]
[354850210,1740736316577,-150.0,0.00074065,28]
[354850211,1740736316645,500.0,0.00058082,80]
[354850212,1740736316910,637.0,0.0005863,85]
[354850213,1740736320841,-150.0,0.00074165,120]
[354850214,1740736322005,-50.0,0.00074165,120]
[354850215,1740736322030,-100.0,0.00074165,120]
[354850216,1740736325571,-150.0,0.0007,120]
[354850217,1740736328044,302.0,0.00045,120]
[354850218,1740736330926,-150.0,0.0007,120]
[354850219,1740736332535,-150.0,0.0007,120]
[354850220,1740736333088,-150.0,0.0007,120]
[354850221,1740736333659,-150.0,0.0007,120]
[354850222,1740736334693,-150.0,0.0007,120]
[354850224,1740736573403,150.0,0.00045,120]
[354850225,1740736590674,10000.0,0.00025,120]
[354850226,1740736602110,10000.0,0.00025,120]
[354850227,1740736617988,10000.0,0.00035,10]
[354850228,1740736634103,10000.0,0.00035,30]
[354850229,1740736641643,10000.0,0.00035,30]
[354850230,1740736653736,10000.0,0.00035,30]
[354850231,1740736662180,10000.0,0.00035,30]
[354850232,1740736669966,10000.0,0.00035,30]
[354850233,1740736681431,10000.0,0.00035,30]
[354850234,1740736699119,10000.0,0.00035,30]
[354850235,1740736737973,8992.0,0.00035,10]
[354850236,1740736856413,-150.0,0.00038977,2]
[354850237,1740736857452,-150.0,0.00038977,2]
[354850238,1740736859624,-150.0,0.00038977,2]
[354850239,1740736959733,-150.0,0.00035516,2]
[354850240,1740736960336,-150.0,0.00037647,120]
[354850241,1740737008301,178.1640556,0.00032877,2]
[354850242,1740737077490,160.0,0.00022,2]
[354850243,1740737077684,183.0,0.00022,2]
[354850244,1740737078033,160.0,0.00023014,2]
[354850245,1740737078068,184.0,0.00023014,2]
[354850246,1740737078362,160.0,0.00028997,2]
[354850247,1740737258048,-12.15890889,0.00035516,2]
[354850248,1740737258071,-137.84109111,0.00037299,2]
[354850249,1740737282962,-150.0,0.00037298,2]
[354850262,1740737337848,162.0,0.0003,2]
[354850263,1740737339835,-150.0,0.00036372,2]
[354850264,1740737345524,989.38239334,0.000329,2]
[354850265,1740737359245,-582.931245,0.00036372,2]
[354850266,1740737359268,-400.0,0.00037298,2]
[354850267,1740737359290,-6945.21608099,0.00037299,2]
[354850268,1740737359311,-61.20769769,0.00037647,120]
[354850269,1740737359332,-989.38239334,0.000379,2]
[354850270,1740737359354,-5389.5144701,0.00038106,40]
[354850317,1740737432687,-2792.4920305,0.00038106,40]
[354850319,1740737432696,-250.0,0.00038458,2]
[354850321,1740737432706,-1105.5922346,0.00038458,2]
[354850323,1740737432715,-416.0426361,0.00038856,2]
[354850325,1740737432725,-201.31183378,0.000389,8]
[354850328,1740737432734,-400.0,0.00038976,5]
[354850329,1740737432756,-8383.43954274,0.00038977,2]
[354850331,1740737432766,-232.3792632,0.00039896,2]
[354850333,1740737432775,-88.44947129,0.00041618,5]
[354850336,1740737433121,-471.55052871,0.00041618,5]
[354850337,1740737433132,-989.38239334,0.000429,2]
[354850338,1740737433143,-8226.59936471,0.00043661,64]
[354850345,1740737438569,-3630.23066309,0.00043661,64]
[354850346,1740737438579,-783.0,0.0004444,5]
[354850347,1740737438589,-9850.0,0.00045,120]
[354850348,1740737438598,-176.8763529,0.00045354,2]
[354850349,1740737438608,-336.0,0.00047454,5]
[354850350,1740737438617,-399.3800469,0.00048465,2]
[354850351,1740737438628,-388.86494908,0.000488,120]
[354850352,1740737438637,-1056.00325281,0.00049,120]
[354850353,1740737438647,-300.0,0.0005,2]
[354850354,1740737438656,-732.931245,0.00054559,2]
[354850355,1740737438665,-1035.13090491,0.00055014,2]
[354850356,1740737438675,-2000.0,0.00056986,2]
[354850358,1740737438684,-4452.29466135,0.00059564,2]
[354850359,1740737438693,-168.82,0.000597,60]
[354850360,1740737438702,-168.82,0.000597,60]
[354850361,1740737438712,-168.82,0.000597,60]
[354850362,1740737438721,-168.82,0.000597,60]
[354850363,1740737438730,-168.82,0.000597,60]
[354850364,1740737438740,-168.82,0.000597,60]
[354850365,1740737438750,-168.82,0.000597,60]
[354850366,1740737438759,-168.82,0.000597,60]
[354850367,1740737438768,-168.82,0.000597,60]
[354850368,1740737438777,-168.82,0.000597,60]
[354850369,1740737438787,-168.82,0.000597,60]
[354850370,1740737438796,-168.82,0.000597,60]
[354850371,1740737438805,-511.75472847,0.000597,10]
[354850372,1740737438814,-500.0,0.00059999,30]
[354850373,1740737438824,-500.0,0.00060547,35]
[354850374,1740737438834,-347.43268879,0.000699,2]
[354850375,1740737438843,-599.871,0.0007,120]
[354850376,1740737438853,-7375.89631543,0.0007,30]
[354850377,1740737438862,-7375.89631543,0.0007,30]
[354850378,1740737438871,-218.43,0.0007,120]
[354850379,1740737438881,-988.8215622,0.0007,120]
[354850380,1740737438890,-151.0,0.00070608,2]
[354850381,1740737438899,-338.20577193,0.00070641,4]
[354850382,1740737438909,-1159.35,0.0007065,120]
[354850383,1740737438918,-24900.0,0.00070651,2]
[354850384,1740737438927,-177.496321,0.00070901,120]
[354850385,1740737438937,-151.0,0.00071156,2]
[354850386,1740737438947,-151.0,0.00071704,2]
[354850387,1740737438956,-151.0,0.00072252,2]
[354850388,1740737438966,-151.0,0.000728,2]
[354850389,1740737438975,-302.0,0.00073348,2]
[354850390,1740737438985,-549.69716592,0.00074,120]
[354850391,1740737438994,-162.89,0.00074703,30]
[354850392,1740737439006,-207.89451888,0.00074713,120]
[354850393,1740737439016,-988.8215622,0.00075,120]
[354850394,1740737439025,-162.89,0.00076252,30]
[354850395,1740737439034,-3000.0,0.00076262,120]
[354850396,1740737439043,-500.0,0.00076262,2]
[354850397,1740737439054,-500.0,0.00076262,2]
[354850398,1740737439063,-1034.0,0.00076262,30]
[354850399,1740737439072,-300.0,0.000767,43]
[354850400,1740737439084,-150.0,0.000794,2]
[354850401,1740737439094,-5152.0,0.0008,120]
[354850402,1740737439104,-988.8215622,0.0008,120]
[354850403,1740737439114,-988.8215622,0.00085,120]
[354850404,1740737439124,-1159.35,0.00087088,120]
[354850405,1740737439133,-177.496321,0.00088626,120]
[354850406,1740737439143,-1000.0,0.00089273,120]
[354850407,1740737439152,-988.8215622,0.0009,120]
[354850408,1740737439161,-214.04776826,0.00090081,2]
[354850409,1740737439171,-22506.90252343,0.0009263,120]
[354850410,1740737439181,-988.8215622,0.00095,120]
[354850411,1740737439190,-3000.0,0.00098,120]
[354850412,1740737439200,-22496.8,0.0009837,10]
[354850413,1740737439210,-500.0,0.00098373,3]
[354850414,1740737439219,-508.99007306,0.00098373,60]
[354850415,1740737439229,-504.13025905,0.00098373,15]
[354850416,1740737439238,-605.30973099,0.00098373,10]
[354850417,1740737439247,-506.29707077,0.00098373,60]
[354850418,1740737439257,-500.0,0.0009838,120]
[354850419,1740737439267,-500.0,0.0009838,2]
[354850420,1740737439277,-500.0,0.0009838,120]
[354850421,1740737439287,-454.59621865,0.0009838,120]
[354850422,1740737439296,-500.0,0.0009838,120]
[354850423,1740737439306,-500.0,0.0009838,2]
[354850424,1740737439316,-419.75647891,0.0009838,120]
[354850425,1740737439325,-500.0,0.0009838,120]
[354850426,1740737439334,-500.0,0.0009838,120]
[354850427,1740737439344,-500.0,0.0009838,2]
[354850428,1740737439354,-500.0,0.0009838,120]
[354850429,1740737439364,-225.02715602,0.0009838,120]
[354850430,1740737439374,-504.9509821,0.0009838,120]
[354850431,1740737439384,-504.9509821,0.0009838,120]
[354850432,1740737439394,-607.0693905,0.0009838,2]
[354850433,1740737439403,-500.0,0.0009838,120]
[354850434,1740737439413,-504.9509821,0.0009838,120]
[354850435,1740737439423,-504.9509821,0.0009838,120]
[354850436,1740737439432,-500.0,0.0009838,120]
[354850437,1740737439441,-504.9509821,0.0009838,120]
[354850438,1740737439451,-504.9509821,0.0009838,120]
[354850439,1740737439461,-504.9509821,0.0009838,120]
[354850440,1740737439470,-581.58430248,0.0009838,120]
[354850441,1740737439480,-504.9509821,0.0009838,120]
[354850442,1740737439489,-504.9509821,0.0009838,120]
[354850443,1740737439501,-504.9509821,0.0009838,120]
[354850444,1740737439510,-504.9509821,0.0009838,120]
[354850445,1740737439520,-504.9509821,0.0009838,120]
[354850446,1740737439530,-504.9509821,0.0009838,120]
[354850447,1740737439540,-504.9509821,0.0009838,120]
[354850448,1740737439553,-504.9509821,0.0009838,120]
[354850449,1740737439563,-504.9509821,0.0009838,120]
[354850450,1740737439572,-504.9509821,0.0009838,120]
[354850451,1740737439582,-504.9509821,0.0009838,120]
[354850452,1740737439593,-504.9509821,0.0009838,120]
[354850453,1740737439603,-504.9509821,0.0009838,120]
[354850454,1740737439613,-504.9509821,0.0009838,120]
[354850455,1740737439624,-504.9509821,0.0009838,120]
[354850456,1740737439634,-504.9509821,0.0009838,120]
[354850457,1740737439643,-504.9509821,0.0009838,120]
[354850458,1740737439653,-504.9509821,0.0009838,120]
[354850459,1740737439662,-504.9509821,0.0009838,120]
[354850460,1740737439802,-504.9509821,0.0009838,120]
[354850461,1740737439812,-504.9509821,0.0009838,120]
[354850462,1740737439823,-504.9509821,0.0009838,120]
[354850463,1740737439834,-504.9509821,0.0009838,120]
[354850464,1740737439844,-504.9509821,0.0009838,120]
[354850465,1740737439854,-504.9509821,0.0009838,120]
[354850466,1740737439863,-504.9509821,0.0009838,120]
[354850467,1740737439873,-504.9509821,0.0009838,120]
[354850468,1740737439883,-504.9509821,0.0009838,120]
[354850469,1740737439893,-504.9509821,0.0009838,120]
[354850470,1740737439902,-504.9509821,0.0009838,120]
[354850471,1740737439911,-504.9509821,0.0009838,120]
[354850472,1740737439921,-504.9509821,0.0009838,120]
[354850473,1740737439930,-504.9509821,0.0009838,120]
[354850474,1740737439939,-504.9509821,0.0009838,120]
[354850475,1740737439949,-504.9509821,0.0009838,120]
[354850476,1740737439961,-504.9509821,0.0009838,120]
[354850477,1740737439970,-504.9509821,0.0009838,120]
[354850478,1740737439980,-504.9509821,0.0009838,120]
[354850479,1740737439990,-504.9509821,0.0009838,120]
[354850480,1740737440000,-504.9509821,0.0009838,120]
[354850481,1740737440010,-504.9509821,0.0009838,120]
[354850482,1740737440020,-504.9509821,0.0009838,120]
[354850483,1740737440030,-504.9509821,0.0009838,120]
[354850484,1740737440039,-504.9509821,0.0009838,120]
[354850485,1740737440048,-504.9509821,0.0009838,120]
[354850486,1740737440058,-504.9509821,0.0009838,120]
[354850487,1740737440067,-504.9509821,0.0009838,120]
[354850488,1740737440076,-504.9509821,0.0009838,120]
[354850489,1740737440085,-504.9509821,0.0009838,120]
[354850490,1740737440095,-26996.16,0.00098381,10]
[354850491,1740737440105,-1014.61731579,0.00098422,13]
[354850492,1740737440114,-1042.61127036,0.0009843,2]
[354850493,1740737440126,-504.31750954,0.00098473,7]
[354850494,1740737440147,-378.16,0.000985,7]
[354850495,1740737440168,-151.0,0.000985,50]
[354850496,1740737440189,-151.0,0.000985,32]
[354850497,1740737440210,-151.0,0.000985,47]
[354850498,1740737440232,-151.0,0.000985,32]
[354850499,1740737440257,-338.20577193,0.0009852,13]
[354850500,1740737440300,-4054.19235309,0.0009853,2]
[354850502,1740737440320,-214.04776826,0.0009853,2]
[354850503,1740737440331,-55555.0,0.0009853,120]
[354850504,1740737440340,-182.71,0.0009853,120]
[354850506,1740737440350,-160.0,0.00098536,2]
[354850508,1740737440359,-5773.98987529,0.00098536,2]
[354850509,1740737440369,-338.20577193,0.0009862,13]
[354850510,1740737440378,-583.65,0.0009862,120]
[354850511,1740737440388,-486.37,0.0009862,120]
[354850512,1740737440398,-405.31,0.0009862,120]
[354850514,1740737440407,-337.76,0.0009862,120]
[354850516,1740737440417,-281.47,0.0009862,120]
[354850518,1740737440427,-234.55,0.0009862,120]
[354850520,1740737440436,-195.46,0.0009862,120]
[354850521,1740737440445,-651.56,0.0009862,120]
[354850524,1740737440456,-4734.88080702,0.0009862,13]
[354850525,1740737440466,-167.29622688,0.00098629,31]
[354850527,1740737440476,-172.98391266,0.00098629,120]
[354850530,1740737440486,-20000.0,0.0009863,70]
[354850531,1740737440495,-13555.1327915,0.0009863,91]
[354850533,1740737440506,-21068.76097608,0.0009863,66]
[354850535,1740737440515,-3000.0,0.0009863,120]
[354850537,1740737440525,-500.0,0.0009863,120]
[354850539,1740737440535,-500.0,0.0009863,120]
[354850541,1740737440546,-503.99042946,0.0009863,120]
[354850543,1740737440555,-500.0,0.0009863,120]
[354850545,1740737440565,-503.19923846,0.0009863,120]
[354850548,1740737440575,-501.26313667,0.0009863,120]
[354850550,1740737440585,-503.8381195,0.0009863,120]
[354850552,1740737440595,-500.0,0.0009863,120]
[354850553,1740737440607,-503.15054128,0.0009863,15]
[354850555,1740737440616,-500.0,0.0009863,120]
[354850557,1740737440628,-527.55085633,0.0009863,120]
[354850559,1740737440638,-500.0,0.0009863,120]
[354850561,1740737440647,-398.38470295,0.0009863,120]
[354850563,1740737440657,-500.82296178,0.0009863,120]
[354850565,1740737440666,-500.0,0.0009863,120]
[354850567,1740737440675,-500.0,0.0009863,120]
[354850569,1740737440685,-500.0,0.0009863,120]
[354850571,1740737440694,-500.0,0.0009863,120]
[354850573,1740737440703,-500.0,0.0009863,120]
[354850575,1740737440712,-414.7859466,0.0009863,120]
[354850577,1740737440721,-507.99439521,0.0009863,120]
[354850579,1740737440731,-516.96054376,0.0009863,120]
[354850581,1740737440740,-500.0,0.0009863,120]
[354850583,1740737440750,-503.69537597,0.0009863,120]
[354850585,1740737440759,-515.53752562,0.0009863,120]
[354850587,1740737440768,-510.52863688,0.0009863,120]
[354850589,1740737440777,-304.53440615,0.0009863,120]
[354850591,1740737440786,-500.0,0.0009863,120]
[354850592,1740737440795,-500.0,0.0009863,120]
[354850594,1740737440804,-1011.0911109,0.0009863,120]
[354850596,1740737440814,-500.0,0.0009863,120]
[354850598,1740737440823,-503.94911697,0.0009863,120]
[354850600,1740737440832,-1455.9,0.0009863,120]
[354850602,1740737440844,-1455.9,0.0009863,120]
[354850604,1740737440854,-1455.9,0.0009863,120]
[354850606,1740737440863,-1455.9,0.0009863,120]
[354850608,1740737440872,-1455.9,0.0009863,120]
[354850610,1740737440881,-1455.9,0.0009863,120]
[354850612,1740737440890,-1455.9,0.0009863,120]
[354850614,1740737440900,-1455.9,0.0009863,120]
[354850616,1740737440909,-1455.9,0.0009863,120]
[354850618,1740737440918,-1455.9,0.0009863,120]
[354850620,1740737440927,-1455.9,0.0009863,120]
[354850622,1740737440936,-1455.9,0.0009863,120]
[354850624,1740737440945,-1455.9,0.0009863,120]
[354850626,1740737440954,-1455.9,0.0009863,120]
[354850628,1740737440963,-1455.9,0.0009863,120]
[354850630,1740737440972,-1455.9,0.0009863,120]
[354850632,1740737440982,-1455.9,0.0009863,120]
[354850634,1740737440991,-1455.9,0.0009863,120]
[354850636,1740737441000,-1455.9,0.0009863,120]
[354850638,1740737441009,-1455.9,0.0009863,120]
[354850640,1740737441018,-1455.9,0.0009863,120]
[354850642,1740737441027,-1455.9,0.0009863,120]
[354850644,1740737441036,-1455.9,0.0009863,120]
[354850646,1740737441045,-1456.0,0.0009863,120]
[354850648,1740737441054,-503.36745853,0.0009863,120]
[354850649,1740737441063,-500.0,0.0009863,120]
[354850651,1740737441072,-500.0,0.0009863,120]
[354850653,1740737441082,-507.88720503,0.0009863,30]
[354850655,1740737441091,-510.58453422,0.0009863,120]
[354850657,1740737441100,-500.0,0.0009863,120]
[354850659,1740737441109,-511.44467809,0.0009863,120]
[354850661,1740737441118,-500.0,0.0009863,120]
[354850663,1740737441127,-500.0,0.0009863,120]
[354850664,1740737441136,-500.0,0.0009863,120]
[354850665,1740737441145,-500.0,0.0009863,120]
[354850666,1740737441154,-500.0,0.0009863,120]
[354850667,1740737441163,-500.0,0.0009863,120]
[354850668,1740737441172,-500.0,0.0009863,120]
[354850669,1740737441181,-390.300202,0.0009863,120]
[354850670,1740737441190,-500.0,0.0009863,120]
[354850671,1740737441199,-501.21200448,0.0009863,2]
[354850672,1740737441208,-500.0,0.0009863,120]
[354850673,1740737441217,-500.0,0.0009863,2]
[354850674,1740737441226,-500.0,0.0009863,2]
[354850675,1740737441235,-501.9531668,0.0009863,120]
[354850676,1740737441244,-500.0,0.0009863,120]
[354850677,1740737441255,-500.0,0.0009863,120]
[354850678,1740737441264,-500.0,0.0009863,120]
[354850679,1740737441273,-500.0,0.0009863,120]
[354850680,1740737441282,-500.0,0.0009863,120]
[354850681,1740737441291,-500.0,0.0009863,120]
[354850682,1740737441301,-540.76551368,0.0009863,120]
[354850683,1740737441310,-500.0,0.0009863,120]
[354850684,1740737441320,-500.0,0.0009863,120]
[354850685,1740737441329,-500.0,0.0009863,120]
[354850686,1740737441338,-500.0,0.0009863,120]
[354850687,1740737441347,-500.0,0.0009863,120]
[354850688,1740737441357,-500.0,0.0009863,120]
[354850689,1740737441366,-500.0,0.0009863,120]
[354850690,1740737441375,-499.999999,0.0009863,120]
[354850691,1740737441385,-500.0,0.0009863,120]
[354850692,1740737441394,-500.0,0.0009863,120]
[354850693,1740737441403,-498.96545085,0.0009863,120]
[354850694,1740737441412,-500.0,0.0009863,2]
[354850695,1740737441421,-500.0,0.0009863,120]
[354850696,1740737441430,-500.0,0.0009863,120]
[354850697,1740737441440,-500.0,0.0009863,120]
[354850698,1740737441449,-502.98196329,0.0009863,120]
[354850699,1740737441459,-500.0,0.0009863,120]
[354850700,1740737441469,-500.0,0.0009863,120]
[354850701,1740737441478,-503.53475153,0.0009863,120]
[354850702,1740737441488,-500.0,0.0009863,120]
[354850703,1740737441497,-500.0,0.0009863,120]
[354850704,1740737441511,-505.02077256,0.0009863,120]
[354850705,1740737441521,-500.0,0.0009863,120]
[354850706,1740737441530,-500.0,0.0009863,120]
[354850707,1740737441542,-500.0,0.0009863,120]
[354850708,1740737441552,-519.90168362,0.0009863,120]
[354850709,1740737441561,-502.58537736,0.0009863,120]
[354850710,1740737441571,-337.48575562,0.0009863,120]
[354850711,1740737441581,-500.0,0.0009863,120]
[354850712,1740737441590,-500.0,0.0009863,120]
[354850713,1740737441600,-500.0,0.0009863,120]
[354850714,1740737441609,-500.0,0.0009863,120]
[354850715,1740737441619,-500.0,0.0009863,120]
[354850716,1740737441630,-500.0,0.0009863,120]
[354850717,1740737441640,-500.0,0.0009863,120]
[354850718,1740737441649,-500.0,0.0009863,120]
[354850719,1740737441659,-500.0,0.0009863,120]
[354850720,1740737441672,-500.0,0.0009863,120]
[354850721,1740737441681,-502.42629236,0.0009863,120]
[354850722,1740737441690,-500.0,0.0009863,120]
[354850723,1740737441699,-500.0,0.0009863,120]
[354850724,1740737441708,-500.0,0.0009863,120]
[354850725,1740737441718,-504.26489431,0.0009863,120]
[354850726,1740737441727,-200.0,0.0009863,7]
[354850727,1740737441736,-200.0,0.0009863,7]
[354850728,1740737441746,-500.0,0.0009863,120]
[354850729,1740737441758,-501.61758701,0.0009863,120]
[354850730,1740737441767,-500.0,0.0009863,120]
[354850731,1740737441777,-500.0,0.0009863,120]
[354850732,1740737441789,-505.53237846,0.0009863,120]
[354850733,1740737441798,-500.0,0.0009863,120]
[354850734,1740737441807,-500.0,0.0009863,120]
[354850735,1740737441817,-500.0,0.0009863,120]
[354850736,1740737441826,-500.0,0.0009863,120]
[354850737,1740737441835,-508.7706481,0.0009863,120]
[354850738,1740737441844,-585.13844355,0.0009863,120]
[354850739,1740737441853,-500.0,0.0009863,120]
[354850740,1740737441862,-500.0,0.0009863,120]
[354850741,1740737441872,-188.71650739,0.0009863,120]
[354850742,1740737441880,-500.0,0.0009863,120]
[354850743,1740737441890,-500.0,0.0009863,120]
[354850744,1740737441899,-500.0,0.0009863,120]
[354850745,1740737441908,-500.0,0.0009863,120]
[354850746,1740737441918,-500.0,0.0009863,120]
[354850747,1740737441927,-500.0,0.0009863,120]
[354850748,1740737441936,-503.92335869,0.0009863,120]
[354850749,1740737441945,-532.53989565,0.0009863,120]
[354850750,1740737441954,-500.0,0.0009863,120]
[354850751,1740737441963,-500.0,0.0009863,120]
[354850752,1740737441972,-500.0,0.0009863,120]
[354850753,1740737441984,-500.0,0.0009863,120]
[354850754,1740737441993,-500.0,0.0009863,120]
[354850755,1740737442006,-508.95272339,0.0009863,120]
[354850756,1740737442015,-500.0,0.0009863,120]
[354850757,1740737442025,-500.0,0.0009863,120]
[354850758,1740737442035,-500.0,0.0009863,120]
[354850759,1740737442045,-500.0,0.0009863,120]
[354850760,1740737442058,-500.0,0.0009863,120]
[354850761,1740737442068,-500.0,0.0009863,120]
[354850762,1740737442077,-500.0,0.0009863,120]
[354850763,1740737442087,-500.0,0.0009863,120]
[354850764,1740737442097,-502.91149694,0.0009863,120]
[354850765,1740737442107,-500.0,0.0009863,120]
[354850766,1740737442117,-500.0,0.0009863,120]
[354850767,1740737442127,-500.0,0.0009863,120]
[354850768,1740737442137,-500.0,0.0009863,120]
[354850769,1740737442147,-500.0,0.0009863,120]
[354850770,1740737442156,-500.0,0.0009863,120]
[354850771,1740737442166,-500.0,0.0009863,120]
[354850772,1740737442176,-500.0,0.0009863,120]
[354850773,1740737442185,-500.0,0.0009863,120]
[354850774,1740737442195,-500.0,0.0009863,120]
[354850775,1740737442204,-500.0,0.0009863,30]
[354850776,1740737442214,-500.0,0.0009863,120]
[354850777,1740737442224,-500.0,0.0009863,120]
[354850778,1740737442233,-500.0,0.0009863,120]
[354850779,1740737442243,-500.0,0.0009863,120]
[354850780,1740737442255,-500.0,0.0009863,120]
[354850781,1740737442264,-500.0,0.0009863,120]
[354850782,1740737442273,-500.0,0.0009863,120]
[354850783,1740737442282,-500.0,0.0009863,120]
[354850784,1740737442291,-302.59,0.0009863,120]
[354850785,1740737442300,-500.0,0.0009863,120]
[354850786,1740737442309,-511.05427331,0.0009863,120]
[354850787,1740737442318,-500.0,0.0009863,120]
[354850788,1740737442327,-500.0,0.0009863,120]
[354850789,1740737442337,-500.0,0.0009863,120]
[354850790,1740737442346,-500.0,0.0009863,120]
[354850791,1740737442355,-500.0,0.0009863,120]
[354850792,1740737442364,-500.0,0.0009863,120]
[354850793,1740737442373,-500.0,0.0009863,120]
[354850794,1740737442383,-500.0,0.0009863,120]
[354850795,1740737442392,-500.0,0.0009863,120]
[354850796,1740737442401,-500.0,0.0009863,120]